bitfinex/quotes_ETHUSD_20241030
["timestamp","ask_amount","ask_price","bid_price","bid_amount"]
[1730317912091,11.11899,2667.4,2666.7,4.53191]
[1730317912092,11.89767,2667.4,2666.7,4.53191]
[1730317912373,4.52767,2667.4,2666.9,3.74965]
[1730317912527,4.52767,2667.4,2666.7,4.53203]
[1730317912528,3.7492,2667.3,2666.7,4.53203]
[1730317912738,3.7492,2667.3,2666.8,3.7498]
[1730317913033,3.7492,2667.3,2666.7,8.28188]
[1730317913353,3.74933,2667.2,2666.7,5.360138]
[1730317913665,3.74933,2667.2,2666.7,5.360198]
[1730317914161,3.74933,2667.2,2666.7,9.110108]
[1730317915075,0.7787,2667.4,2666.7,5.23761499]
[1730317915373,3.74884,2667.5,2667.0,3.74943]
[1730317915953,4.6244037,2667.7,2667.1,3.93385406]
[1730317916137,8.3730737,2667.7,2667.2,0.763]
[1730317916342,4.6244037,2667.7,2667.3,3.74908]
[1730317916580,4.6244037,2667.7,2667.3,0.18437684]
[1730317916962,4.6244037,2667.7,2667.2,4.51224]
[1730317917170,4.6244037,2667.7,2667.4,0.18427325]
[1730317917478,4.6244037,2667.7,2667.5,0.18416966]
[1730317917678,4.6244037,2667.7,2667.2,4.51224]
[1730317917978,3.7487,2667.6,2667.2,0.763]
[1730317918286,3.7487,2667.6,2667.1,7.49858]
[1730317918576,3.7487,2667.6,2667.1,3.74927]
[1730317920241,0.85227037,2667.6,2666.9,4.52205]
[1730317920449,3.74889,2667.5,2667.0,3.74945]
[1730317920864,7.49783,2667.5,2667.0,3.74945]
[1730317921275,3.74889,2667.5,2666.9,4.52217]
[1730317921589,3.74896,2667.4,2666.9,0.7725]
[1730317922084,3.74896,2667.4,2666.9,4.52216]
[1730317922291,3.74889,2667.5,2667.0,3.74953]
[1730317922784,7.49779,2667.5,2667.0,3.74953]
[1730317923287,0.8757737,2667.7,2666.9,1.65206415]
[1730317923521,4.6243837,2667.7,2667.1,3.74928]
[1730317923889,3.74877,2667.6,2667.1,3.74928]
[1730317924506,3.74885,2667.5,2667.0,3.82446224]
[1730317924886,3.74885,2667.5,2667.0,3.74948]
[1730317925085,3.7487,2667.6,2667.1,7.49854]
[1730317925508,3.74927,2667.2,2666.9,0.7725]
[1730317925696,3.74927,2667.2,2666.7,0.791]
[1730317925896,0.7943,2667.3,2666.7,0.791]
[1730317925897,3.74968,2666.9,2666.7,0.791]
[1730317926098,3.74962,2667.0,2666.7,0.791]
[1730317926299,3.74952,2667.1,2666.7,0.791]
[1730317926593,3.74952,2667.1,2666.4,3.75026]
[1730317926594,3.74968,2666.9,2666.4,3.75026]
[1730317926787,3.74968,2666.9,2666.5,0.8064]
[1730317927678,3.74954,2667.0,2666.5,0.8064]
[1730317927881,3.74996,2666.7,2666.0,0.8203]
[1730317928094,0.768,2666.9,2666.0,0.8203]
[1730317928095,0.768,2666.9,2666.1,0.4447627]
[1730317928411,0.768,2666.9,2666.0,0.8203]
[1730317928412,3.75031,2666.5,2666.0,0.8203]
[1730317928619,4.51845,2666.4,2665.9,3.75106]
[1730317928917,4.51845,2666.4,2665.9,7.50205]
[1730317929084,4.51845,2666.4,2665.9,3.75099]
[1730317929285,4.51845,2666.4,2665.9,4.583248]
[1730317930313,4.51845,2666.4,2665.9,4.583218]
[1730317930821,0.768,2666.4,2666.0,3.75091]
[1730317931027,0.768,2666.4,2666.0,3.93659608]
[1730317931724,7.37700699,2666.9,2666.0,3.93659608]
[1730317931725,4.54758,2666.6,2666.0,3.93659608]
[1730317932098,4.54758,2666.6,2666.1,3.75079]
[1730317932295,3.75038,2666.4,2666.1,0.18558238]
[1730317932496,3.75051,2666.3,2666.1,0.18558238]
[1730317932696,3.75051,2666.3,2665.5,0.8271]
[1730317932697,0.756,2666.2,2665.5,0.8271]
[1730317932901,3.75128,2665.8,2665.3,0.8271]
[1730317933340,3.75128,2665.8,2665.3,4.57901]
[1730317934034,3.75128,2665.8,2665.3,0.8271]
[1730317934211,1.206651,2666.2,2665.1,3.75212]
[1730317934212,3.75163,2665.6,2665.1,3.75212]
[1730317934414,4.126793,2665.6,2665.1,3.75212]
[1730317934586,7.50321,2665.6,2665.1,3.75212]
[1730317934786,3.75158,2665.6,2665.1,3.75212]
[1730317935425,3.75158,2665.6,2665.2,0.3751]
[1730317935627,3.75158,2665.6,2665.1,3.75212]
[1730317936395,7.50264,2665.8,2665.2,3.75206]
[1730317936791,3.75129,2665.8,2665.2,3.75206]
[1730317937025,3.75143,2665.7,2665.2,3.75206]
[1730317937804,3.75107,2665.9,2665.2,3.75196]
[1730317938042,3.75074,2666.2,2665.7,3.75134]
[1730317938210,0.828,2666.3,2665.6,0.764]
[1730317938536,3.7508,2666.1,2665.6,0.764]
[1730317938833,3.75073,2666.2,2665.7,3.75129]
[1730317939243,0.828,2666.3,2665.8,3.7512]
[1730317939440,4.57853,2666.3,2665.8,3.75121]
[1730317940936,3.75025,2666.5,2665.8,3.75121]
[1730317940937,4.54665,2666.5,2665.8,3.75121]
[1730317941136,4.54665,2666.5,2666.0,3.75091]
[1730317941702,0.7964,2666.5,2666.1,3.75077]
[1730317941902,3.75009,2666.6,2666.1,4.55407]
[1730317942217,3.75025,2666.5,2666.1,0.8033]
[1730317942428,11.94804,2666.7,2666.1,0.8033]
[1730317942634,11.94804,2666.7,2666.2,3.75065]
[1730317942635,3.75015,2666.6,2666.2,3.75065]
[1730317942945,3.75015,2666.6,2666.1,4.55401]
[1730317943499,3.74996,2666.7,2666.2,3.75054]
[1730317943734,3.74996,2666.7,2666.3,3.75051]
[1730317943941,3.74996,2666.7,2666.2,7.50109]
[1730317944250,3.74982,2666.8,2666.3,3.75044]
[1730317944604,3.75001,2666.7,2666.2,3.75054]
[1730317945708,3.75001,2666.7,2666.3,0.185579]
[1730317945904,3.75001,2666.7,2666.2,3.75054]
[1730317946243,3.75001,2666.7,2666.4,0.18547533]
[1730317946538,3.75001,2666.7,2666.5,0.18537167]
[1730317946714,3.75001,2666.7,2666.2,3.75054]
[1730317946922,7.50008,2666.7,2666.6,0.18526801]
[1730317947118,7.50008,2666.7,2666.2,3.75054]
[1730317947308,7.50004,2666.7,2666.6,0.18526801]
[1730317947523,3.75001,2666.7,2666.2,3.75054]
[1730317947716,3.75001,2666.7,2666.6,0.18526801]
[1730317947917,4.9445567,2666.7,2666.1,0.8033]
[1730317948104,3.75001,2666.7,2666.6,0.18526801]
[1730317948415,3.75001,2666.7,2666.2,3.75063]
[1730317948616,3.75001,2666.7,2666.6,0.18526801]
[1730317948844,3.75001,2666.7,2666.2,3.75063]
[1730317949306,3.75011,2666.6,2666.3,0.185579]
[1730317949508,3.75011,2666.6,2666.2,3.75063]
[1730317949729,3.75011,2666.6,2666.4,0.18547533]
[1730317949930,3.75011,2666.6,2666.2,3.75063]
[1730317950141,3.75011,2666.6,2666.5,0.18537167]
[1730317950308,3.75011,2666.6,2666.2,3.75063]
[1730317950509,3.75011,2666.6,2666.5,0.18537167]
[1730317950747,3.75011,2666.6,2666.2,3.75063]
[1730317951043,3.75011,2666.6,2666.5,0.18537167]
[1730317951248,3.75011,2666.6,2666.2,3.75063]
[1730317951731,3.75011,2666.6,2666.3,0.185579]
[1730317951906,3.75011,2666.6,2666.2,3.75063]
[1730317952107,3.75011,2666.6,2666.4,0.18547533]
[1730317952415,3.75011,2666.6,2666.2,3.75063]
[1730317952633,3.75011,2666.6,2666.5,0.18537167]
[1730317952828,3.75011,2666.6,2666.2,3.75063]
[1730317953312,3.75011,2666.6,2666.3,0.1855221]
[1730317953507,3.75011,2666.6,2666.2,3.75063]
[1730317953707,3.75011,2666.6,2666.4,0.18541842]
[1730317954009,3.75011,2666.6,2666.2,3.75063]
[1730317954209,3.75011,2666.6,2666.5,0.18531476]
[1730317954405,3.75011,2666.6,2666.2,3.75063]
[1730317954648,3.75011,2666.6,2666.5,0.18531476]
[1730317954824,3.75011,2666.6,2666.2,3.75063]
[1730317955011,3.75011,2666.6,2666.5,0.18531476]
[1730317955213,3.75011,2666.6,2666.2,3.75063]
[1730317955739,3.75011,2666.6,2666.3,0.1855221]
[1730317956035,3.75011,2666.6,2666.2,3.75063]
[1730317956243,3.75011,2666.6,2666.4,0.18541842]
[1730317956441,3.75011,2666.6,2666.3,0.1855221]
[1730317956606,3.75011,2666.6,2666.5,0.18531476]
[1730317956805,3.75027,2666.5,2666.1,0.8033]
[1730317957014,3.75053,2666.3,2665.8,3.75112]
[1730317957324,3.75053,2666.3,2665.8,3.75111]
[1730317958335,3.75053,2666.3,2665.8,7.50226]
[1730317959543,3.75066,2666.2,2665.8,3.75111]
[1730317959740,3.75066,2666.2,2665.7,4.58412]
[1730317959741,5.283079,2666.2,2665.7,4.58412]
[1730317959922,4.53296,2666.2,2665.7,4.58412]
[1730317960122,4.53296,2666.2,2665.7,0.8328]
[1730317960440,4.53296,2666.2,2665.6,3.7514]
[1730317960441,3.75089,2666.1,2665.6,3.7514]
[1730317960641,4.53308,2666.2,2665.6,3.7514]
[1730317960841,3.75094,2666.0,2665.7,0.18616883]
[1730317961043,3.75081,2666.1,2665.7,0.18616883]
[1730317961347,3.75101,2666.0,2665.7,0.18616883]
[1730317961548,3.75101,2666.0,2665.5,4.57712]
[1730317961845,3.75101,2666.0,2665.8,0.18606511]
[1730317962021,3.75101,2666.0,2665.5,4.57712]
[1730317962230,3.75101,2666.0,2665.9,0.18596139]
[1730317962422,3.75101,2666.0,2665.5,4.57712]
[1730317962765,3.75082,2666.1,2665.7,3.75131]
[1730317963351,3.75082,2666.1,2665.8,0.18606511]
[1730317963655,3.75082,2666.1,2665.7,3.75131]
[1730317963814,3.75082,2666.1,2665.9,0.18596139]
[1730317964144,3.75082,2666.1,2666.0,0.18585769]
[1730317964452,3.75082,2666.1,2665.7,3.75131]
[1730317965047,4.53308,2666.2,2665.8,0.18611314]
[1730317965048,3.75094,2666.0,2665.8,0.18611314]
[1730317965253,3.75082,2666.1,2665.8,0.18611314]
[1730317965614,3.75082,2666.1,2665.7,3.75131]
[1730317965814,3.75082,2666.1,2665.9,0.18600943]
[1730317966014,4.53297,2666.2,2665.6,3.75136]
[1730317966236,4.53297,2666.2,2666.0,0.18590573]
[1730317966552,4.53297,2666.2,2666.1,0.18580203]
[1730317966755,4.53297,2666.2,2665.8,3.75121]
[1730317967057,0.7823,2666.2,2666.1,0.18580203]
[1730317967216,3.75057,2666.3,2665.9,4.51995]
[1730317967415,3.75057,2666.3,2666.1,0.18580203]
[1730317967615,3.75057,2666.3,2665.9,4.51995]
[1730317967829,3.75057,2666.3,2666.2,0.18569834]
[1730317968049,3.75057,2666.3,2665.9,4.51995]
[1730317968557,3.75057,2666.3,2666.0,0.18590573]
[1730317970453,3.75026,2666.5,2666.0,3.93674573]
[1730317970755,7.952586,2666.5,2666.0,3.93674573]
[1730317970961,3.75045,2666.4,2666.0,0.18590573]
[1730317972039,4.202236,2666.5,2666.0,3.93682573]
[1730317972360,3.75037,2666.4,2666.0,3.93682573]
[1730317973245,3.75037,2666.4,2666.0,0.18590573]
[1730317973246,0.7769,2666.4,2666.0,0.18590573]
[1730317973453,3.75056,2666.3,2666.0,0.18590573]
[1730317973631,0.452746,2666.2,2665.7,3.75128]
[1730317973951,4.203396,2666.2,2665.7,3.75128]
[1730317974251,4.203396,2666.2,2665.8,0.18610628]
[1730317974458,3.7508,2666.1,2665.8,0.18610628]
[1730317974664,3.7508,2666.1,2665.7,3.75128]
[1730317974831,3.7508,2666.1,2665.9,0.18600256]
[1730317975159,3.7508,2666.1,2666.0,0.18589886]
[1730317975361,3.7508,2666.1,2665.7,3.75128]
[1730317975518,3.7508,2666.1,2666.0,0.18589886]
[1730317975720,3.7508,2666.1,2665.7,3.75128]
[1730317975929,3.7508,2666.1,2665.8,0.18610628]
[1730317976132,3.7508,2666.1,2665.7,3.75128]
[1730317976367,4.203466,2666.2,2665.9,0.18600256]
[1730317976856,4.203466,2666.2,2665.7,3.75128]
[1730317977054,4.203466,2666.2,2666.0,0.18589886]
[1730317977241,4.203466,2666.2,2665.7,3.75128]
[1730317977460,4.203466,2666.2,2666.1,0.18579516]
[1730317977656,4.203466,2666.2,2665.7,3.75128]
[1730317977856,4.203466,2666.2,2666.1,0.18579516]
[1730317978236,3.75085,2666.1,2665.6,4.55251]
[1730317981066,3.75085,2666.1,2665.6,0.8011]
[1730317981369,3.75085,2666.1,2665.7,3.75135]
[1730317981674,3.75072,2666.2,2665.7,7.50264]
[1730317981966,3.75072,2666.2,2665.7,3.75129]
[1730317982158,3.75079,2666.1,2665.7,3.75129]
[1730317982547,3.75072,2666.2,2665.7,3.75129]
[1730317982742,4.50612,2666.0,2665.6,0.8011]
[1730317982947,0.7551,2666.0,2665.6,4.55259]
[1730317983151,0.7551,2666.0,2665.7,3.75129]
[1730317984691,0.7551,2666.0,2665.2,0.454706]
[1730317984837,0.7551,2666.0,2664.7,12.35]
[1730317984838,4.50614,2666.0,2665.4,4.5138]
[1730317985261,3.75114,2665.9,2665.4,4.5138]
[1730317987350,3.75114,2665.9,2665.5,3.75158]
[1730317988882,0.7551,2666.0,2665.4,4.5138]
[1730317989054,4.50605,2666.0,2665.4,4.5138]
[1730317989247,4.50605,2666.0,2665.6,3.75142]
[1730317989637,0.7551,2666.0,2665.6,3.75142]
[1730317989984,4.50604,2666.0,2665.6,3.75142]
[1730317990841,4.50604,2666.0,2665.7,0.186211]
[1730317991053,4.50604,2666.0,2665.7,3.937501]
[1730317991054,1.580771,2666.0,2665.7,3.937501]
[1730317991389,0.7551,2666.0,2665.7,3.937501]
[1730317991585,0.7551,2666.0,2665.7,0.186211]
[1730317992087,0.7551,2666.0,2665.7,3.937561]
[1730317992450,0.7551,2666.0,2665.7,0.186211]
[1730317992989,0.7551,2666.0,2665.8,0.18610728]
[1730317993159,0.7551,2666.0,2665.6,3.75147]
[1730317993356,0.7551,2666.0,2665.9,0.18602023]
[1730317993576,0.7551,2666.0,2665.6,3.75147]
[1730317993780,0.7551,2666.0,2665.9,0.18602023]
[1730317993984,0.7551,2666.0,2665.6,3.75147]
[1730317994157,4.50604,2666.0,2665.9,0.18602023]
[1730317994358,4.50604,2666.0,2665.6,3.75147]
[1730317994726,4.50604,2666.0,2665.9,0.18602023]
[1730317995287,4.50604,2666.0,2665.6,3.75147]
[1730317995467,4.50604,2666.0,2665.9,0.18602023]
[1730317995669,4.50604,2666.0,2665.6,3.75147]
[1730317995867,4.50604,2666.0,2665.9,0.18602023]
[1730317996090,8.25706,2666.0,2665.6,3.75147]
[1730317996268,4.50604,2666.0,2665.9,0.18602023]
[1730317996887,3.75113,2665.9,2665.4,8.64061]
[1730317997095,3.75113,2665.9,2665.6,0.7961]
[1730317997279,3.75089,2666.1,2665.6,4.54752]
[1730317997470,7.50182,2666.1,2665.6,4.54752]
[1730317999516,0.7534,2665.9,2665.4,4.12675]
[1730317999814,0.7534,2665.9,2665.5,3.75164]
[1730318000119,3.75127,2665.8,2665.4,3.75172]
[1730318000317,7.50257,2665.8,2665.4,3.75172]
[1730318000531,3.75127,2665.8,2665.4,3.75172]
[1730318001022,3.75127,2665.8,2665.3,0.7597]
[1730318001184,3.75127,2665.8,2665.3,4.5116]
[1730318001385,3.75127,2665.8,2665.4,3.75175]
[1730318002246,0.7534,2665.9,2665.5,3.75156]
[1730318002416,4.50454,2665.9,2665.5,3.75156]
[1730318003123,3.75077,2666.2,2665.7,0.7522]
[1730318003424,3.7508,2666.1,2665.7,4.50352]
[1730318004423,3.75068,2666.2,2665.7,4.50352]
[1730318005127,8.1437,2666.6,2665.9,0.7819]
[1730318005429,0.58709701,2666.9,2666.2,3.75055]
[1730318005430,3.75005,2666.7,2666.2,3.75055]
[1730318005632,7.50012,2666.7,2666.2,3.75055]
[1730318005811,7.50008,2666.7,2666.3,0.18561821]
[1730318006020,3.75003,2666.7,2666.2,3.75055]
[1730318006224,3.75003,2666.7,2666.4,0.18551454]
[1730318006225,7.50007,2666.7,2666.4,0.18551454]
[1730318006416,7.50007,2666.7,2666.2,3.75055]
[1730318006618,7.50007,2666.7,2666.2,4.66289737]
[1730318006795,7.50007,2666.7,2666.3,0.18561821]
[1730318006998,7.50007,2666.7,2666.2,4.66289737]
[1730318007328,7.50007,2666.7,2666.4,0.18551454]
[1730318007496,7.50007,2666.7,2666.3,0.18561821]
[1730318007697,3.75009,2666.6,2666.5,0.18541087]
[1730318007892,3.75009,2666.6,2666.4,0.18547434]
[1730318008134,3.75009,2666.6,2666.5,0.18537067]
[1730318008497,3.75009,2666.6,2666.2,3.75055]
[1730318008698,3.75009,2666.6,2666.5,0.18537067]
[1730318008896,3.75009,2666.6,2666.2,3.75055]
[1730318009127,3.75009,2666.6,2666.5,0.18537067]
[1730318009324,3.75009,2666.6,2666.2,3.75055]
[1730318009498,3.75009,2666.6,2666.5,0.18537067]
[1730318009699,3.75009,2666.6,2666.2,3.75055]
[1730318009938,3.75009,2666.6,2666.5,0.18537067]
[1730318010139,3.75009,2666.6,2666.2,3.75055]
[1730318010307,7.50012,2666.7,2666.5,0.18537067]
[1730318010492,3.7501,2666.6,2666.2,3.75055]
[1730318011700,3.7503,2666.5,2666.0,3.75091]
[1730318011891,3.7503,2666.5,2666.0,4.8030188]
[1730318012534,3.7503,2666.5,2666.0,8.5538688]
[1730318012838,0.8181,2666.3,2665.7,3.75126]
[1730318013004,0.8181,2666.3,2665.7,4.12636]
[1730318013005,3.75075,2666.2,2665.7,4.12636]
[1730318013207,0.8181,2666.3,2665.7,0.3751]
[1730318013405,0.8181,2666.3,2665.6,0.7584]
[1730318013406,3.75098,2666.0,2665.6,0.7584]
[1730318013612,7.502,2666.0,2665.6,0.7584]
[1730318013813,3.75098,2666.0,2665.6,0.7584]
[1730318014338,0.8181,2665.9,2665.5,3.75154]
[1730318014515,4.56918,2665.9,2665.5,3.75154]
[1730318015812,4.56918,2665.9,2665.6,0.3751]
[1730318016742,4.56918,2665.9,2665.4,2.38064367]
[1730318016901,3.75129,2665.8,2665.4,2.38064367]
[1730318017309,3.75123,2665.8,2665.4,0.7584]
[1730318017509,3.75123,2665.8,2665.4,4.51017]
[1730318018547,3.75139,2665.7,2665.4,0.7584]
[1730318019045,3.75139,2665.7,2665.3,3.75191]
[1730318019349,3.75139,2665.7,2665.3,7.50382]
[1730318019509,3.75139,2665.7,2665.2,6.53009367]
[1730318019709,3.75139,2665.7,2665.3,3.7519]
[1730318020416,3.75139,2665.7,2665.2,6.15499367]
[1730318020820,0.8181,2665.9,2665.3,0.18661026]
[1730318021016,3.7517,2665.5,2665.3,0.18661026]
[1730318021220,1.62224367,2665.6,2664.9,4.12751]
[1730318021221,4.55215,2665.3,2664.9,4.12751]
[1730318021531,0.8002,2665.3,2664.9,7.87991]
[1730318021837,4.55213,2665.3,2664.9,4.616571]
[1730318023054,4.55213,2665.3,2664.9,3.7524]
[1730318023356,0.8002,2665.3,2664.9,3.7524]
[1730318024223,0.8002,2665.3,2665.0,3.75227]
[1730318024402,3.75185,2665.4,2664.9,3.75247]
[1730318024604,0.7693,2665.4,2665.0,3.75227]
[1730318024803,4.52085,2665.6,2665.2,0.7771]
[1730318025613,0.7693,2665.6,2665.2,2.39934367]
[1730318025820,4.52064,2665.8,2665.3,3.75184]
[1730318026108,3.75117,2665.9,2665.4,3.75175]
[1730318026309,3.75117,2665.9,2665.4,6.20956632]
[1730318026517,3.75117,2665.9,2665.4,4.58732265]
[1730318027125,3.75123,2665.8,2665.4,0.83557265]
[1730318028949,3.75123,2665.8,2665.4,4.58731265]
[1730318032363,3.75123,2665.8,2665.4,0.83557265]
[1730318032657,3.75143,2665.7,2665.2,4.52914]
[1730318033362,3.75143,2665.7,2665.4,15.0]
[1730318033748,7.50253,2665.8,2665.4,15.0]
[1730318034771,3.75123,2665.8,2665.4,15.0]
[1730318035456,7.50255,2665.8,2665.4,15.0]
[1730318035843,7.50255,2665.8,2665.5,0.18042448]
[1730318036262,3.75123,2665.8,2665.5,0.18042448]
[1730318036460,3.75137,2665.7,2665.5,0.18042448]
[1730318037887,4.5628,2665.6,2665.5,0.18042448]
[1730318039246,3.75143,2665.7,2665.5,0.18042448]
[1730318041883,3.7515,2665.6,2665.5,0.18042448]
[1730318042087,3.75142,2665.7,2665.5,0.18042448]
[1730318042569,0.8113,2665.9,2665.5,0.18042448]
[1730318042778,8.1363,2666.1,2665.6,6.19486367]
[1730318042948,7.37,2666.1,2665.7,0.18022564]
[1730318043149,11.12085,2666.1,2665.7,0.18022564]
[1730318043503,3.75094,2666.0,2665.7,0.18022564]
[1730318043654,3.75117,2665.9,2665.7,0.18022564]
[1730318045147,3.75121,2665.8,2665.7,0.18022564]
[1730318045485,3.75093,2666.0,2665.7,0.18022564]
[1730318046193,3.75099,2666.0,2665.7,0.18022564]
[1730318046666,3.75108,2665.9,2665.7,0.18022564]
[1730318047050,7.50225,2665.9,2665.7,0.18022564]
[1730318047245,3.75108,2665.9,2665.7,0.18022564]
[1730318047881,3.751,2666.0,2665.7,0.18022564]
[1730318049102,3.75109,2665.9,2665.7,0.18022564]
[1730318052210,3.75094,2666.0,2665.7,0.18022564]
[1730318053498,3.7511,2665.9,2665.7,0.18022564]
[1730318054211,4.5429,2665.9,2665.7,0.18022564]
[1730318054412,5.53450337,2665.9,2665.5,3.75163]
[1730318054582,4.5429,2665.9,2665.8,0.1800836]
[1730318054922,4.5429,2665.9,2665.5,3.75163]
[1730318055517,4.5429,2665.9,2665.6,0.18029105]
[1730318055897,3.75124,2665.8,2665.6,0.18029105]
[1730318056111,4.5429,2665.9,2665.6,0.18029105]
[1730318056317,3.75123,2665.8,2665.4,19.52226]
[1730318056521,3.75123,2665.8,2665.7,0.18018732]
[1730318056680,3.75123,2665.8,2665.4,19.52226]
[1730318056880,4.5429,2665.9,2665.7,0.18018732]
[1730318057184,4.5429,2665.9,2665.8,0.1800836]
[1730318057498,4.5429,2665.9,2665.4,19.52226]
[1730318057980,4.5429,2665.9,2665.5,0.18039478]
[1730318058787,3.75133,2665.8,2665.5,0.18039478]
[1730318059719,4.5429,2665.9,2665.5,0.18039478]
[1730318060396,3.75128,2665.8,2665.5,0.18039478]
[1730318060587,0.7918,2665.9,2665.5,0.18039478]
[1730318060793,4.54289,2665.9,2665.5,0.18039478]
[1730318061621,3.75131,2665.8,2665.5,0.18039478]
[1730318062003,4.5234,2665.6,2665.5,0.18039478]
[1730318063408,0.8225,2665.9,2665.5,0.18039478]
[1730318063727,3.75122,2665.8,2665.5,1.01089478]
[1730318064421,2.44474367,2665.9,2665.5,0.18039478]
[1730318064624,3.7515,2665.6,2665.5,0.18039478]
[1730318066017,3.75136,2665.7,2665.5,0.18039478]
[1730318066444,7.50285,2665.7,2665.5,0.18039478]
[1730318066810,3.7515,2665.6,2665.5,0.18039478]
[1730318067844,4.5587,2665.6,2665.5,0.18039478]
[1730318068038,0.8072,2665.6,2665.5,0.18039478]
[1730318068244,3.75136,2665.7,2665.5,0.18039478]
[1730318068606,3.75136,2665.7,2665.6,0.7857]
[1730318068811,3.75074,2666.2,2665.7,0.7857]
[1730318069153,3.75074,2666.2,2665.7,4.53694]
[1730318069318,3.75074,2666.2,2665.8,3.93131232]
[1730318070144,3.75085,2666.1,2665.8,0.18011232]
[1730318070317,3.75074,2666.2,2665.8,0.18011232]
[1730318070318,3.75075,2666.2,2665.8,0.18011232]
[1730318070527,4.862974,2666.1,2665.7,0.7857]
[1730318070732,6.16567367,2666.0,2665.9,0.17998561]
[1730318070931,6.16567367,2666.0,2665.8,0.18008933]
[1730318071114,6.16567367,2666.0,2665.9,0.17998561]
[1730318071321,7.15733104,2666.0,2665.9,0.17998561]
[1730318071945,7.15733104,2666.0,2665.5,3.75155]
[1730318072247,6.16567367,2666.0,2665.5,3.75155]
[1730318072415,2.41474367,2666.0,2665.6,0.18029677]
[1730318072605,3.75108,2665.9,2665.6,0.18029677]
[1730318073660,3.75115,2665.9,2665.4,19.53317]
[1730318073949,3.75086,2666.1,2665.8,0.7814]
[1730318074304,3.75086,2666.1,2665.9,0.17998944]
[1730318074704,8.1625,2666.3,2665.9,0.17998944]
[1730318074705,3.75069,2666.2,2665.9,0.17998944]
[1730318075051,7.50144,2666.2,2665.9,0.17998944]
[1730318075242,3.75069,2666.2,2665.9,0.17998944]
[1730318078060,7.50145,2666.2,2665.9,0.17998944]
[1730318079162,3.75083,2666.1,2665.9,0.17998944]
[1730318080295,4.57853,2666.0,2665.9,0.17998944]
[1730318080448,4.57924,2665.5,2665.4,15.0]
[1730318080647,7.57924,2665.5,2665.4,15.0]
[1730318080895,9.20148367,2665.5,2665.4,15.0]
[1730318081098,10.49678404,2665.5,2665.4,15.0]
[1730318081898,10.51678404,2665.5,2665.4,15.0]
[1730318082046,12.07526424,2665.5,2665.4,5.62055]
[1730318082251,3.75304,2664.5,2664.4,0.4]
[1730318082473,4.52024,2664.5,2664.4,0.4]
[1730318082688,5.37516367,2664.6,2664.4,0.4]
[1730318082850,7.50596,2664.6,2664.4,0.4]
[1730318083054,3.75292,2664.6,2664.4,0.4]
[1730318083253,7.50591,2664.6,2664.4,0.4]
[1730318083473,3.75304,2664.5,2664.4,0.4]
[1730318084383,6.75304,2664.5,2664.4,0.4]
[1730318088943,6.75304,2664.5,2664.4,0.58180862]
[1730318089140,6.75304,2664.5,2664.4,0.4]
[1730318091219,7.57254,2664.5,2664.4,0.4]
[1730318091428,7.57254,2664.5,2664.4,0.4376]
[1730318101574,3.75445,2663.5,2663.4,0.7591]
[1730318101723,3.75445,2663.5,2662.9,0.7591]
[1730318101924,3.75445,2663.5,2663.0,0.451451]
[1730318102125,3.755,2663.2,2662.9,0.7591]
[1730318102538,3.75477,2663.3,2662.9,0.7591]
[1730318102734,3.75477,2663.3,2662.9,4.51438]
[1730318102935,7.50963,2663.3,2662.9,0.7591]
[1730318103442,3.75494,2663.2,2662.9,0.7591]
[1730318103636,3.75477,2663.3,2662.9,0.7591]
[1730318103637,3.75475,2663.3,2662.9,0.7591]
[1730318103848,7.50961,2663.3,2662.9,0.7591]
[1730318104169,3.75475,2663.3,2662.9,0.7591]
[1730318104328,7.50958,2663.3,2662.9,0.7591]
[1730318104534,3.75489,2663.2,2662.9,0.7591]
[1730318104737,6.62991631,2663.7,2662.9,0.7591]
[1730318104927,3.75438,2663.6,2663.0,3.7551]
[1730318105166,3.75452,2663.5,2663.1,0.7591]
[1730318105541,3.75462,2663.4,2663.1,0.7591]
[1730318106359,7.38425631,2663.6,2663.1,0.7591]
[1730318106533,3.75471,2663.4,2663.1,0.7591]
[1730318106935,3.7548,2663.3,2663.1,0.7591]
[1730318107160,3.75471,2663.4,2662.7,4.51464]
[1730318107161,3.75502,2663.1,2662.7,4.51464]
[1730318107509,7.38535631,2662.8,2662.4,0.7591]
[1730318107675,3.62991631,2662.8,2662.4,0.7591]
[1730318107985,3.7553,2662.9,2662.4,4.515]
[1730318108474,3.75558,2662.7,2662.4,0.7591]
[1730318108676,3.75544,2662.8,2662.4,0.7591]
[1730318108884,3.75561,2662.7,2662.4,0.7591]
[1730318109256,3.75561,2662.7,2662.2,0.8066]
[1730318109565,3.62991631,2662.8,2661.9,3.75661]
[1730318109566,7.38593631,2662.4,2661.9,0.7716]
[1730318109737,11.14207631,2662.4,2661.9,0.7716]
[1730318110240,3.7563,2662.2,2661.9,0.7716]
[1730318110637,7.38621631,2662.2,2661.9,0.7716]
[1730318110837,7.38621631,2662.2,2662.0,0.17864076]
[1730318111306,7.38621631,2662.2,2661.7,3.75699]
[1730318111307,3.7585,2662.1,2661.3,0.7974]
[1730318111506,3.62991631,2661.8,2661.3,0.7974]
[1730318111808,7.38678631,2661.8,2661.3,5.010359]
[1730318112101,7.38678631,2661.8,2661.3,1.252899]
[1730318112304,3.757,2661.7,2661.3,0.7974]
[1730318112689,3.0,2662.0,2661.4,3.75731]
[1730318112690,7.38649631,2662.0,2661.4,3.75731]
[1730318113009,7.38649631,2662.0,2661.4,3.75742]
[1730318113368,3.75676,2661.9,2661.3,4.55484]
[1730318113602,11.14317631,2662.0,2661.4,3.75735]
[1730318113806,11.14318631,2662.0,2661.4,3.75735]
[1730318113975,7.38654631,2662.0,2661.3,0.7974]
[1730318114176,3.62991631,2661.4,2660.7,3.75833]